[Event "December 12 Late 2023"]
[Site "https://www.chess.com"]
[Date "2023.12.12"]
[Round "1"]
[White "Storn, Justin"]
[Black "Nagare Kaivalya Sandip"]
[Result "1-0"]
[Board "88"]
[TimeControl "180+1"]
[WhiteFideId "30922720"]
[BlackFideId "25957929"]
[WhiteElo "2349"]
[BlackElo "2689"]
[WhiteTeam "USA"]
[BlackTeam "IND"]
[WhiteClock "0:00:21"]
[BlackClock "0:00:10"]

1. e4 {[%clk 0:03:00]}  e5 {[%clk 0:02:59]} 2. Nc3 {[%clk 0:03:00]}  Nf6 {[%clk 0:02:58]} 3. f4 {[%clk 0:03:00]}  d5 {[%clk 0:02:57]} 4. fxe5 {[%clk 0:03:00]}  Nxe4 {[%clk 0:02:57]} 5. Qf3 {[%clk 0:03:01]}  Nxc3 {[%clk 0:02:56]} 6. bxc3 {[%clk 0:03:02]}  Be7 {[%clk 0:02:57]} 7. d4 {[%clk 0:03:01]}  O-O {[%clk 0:02:57]} 8. Bd3 {[%clk 0:02:47]}  c5 {[%clk 0:02:57]} 9. Ne2 {[%clk 0:02:36]}  Nc6 {[%clk 0:02:54]} 10. O-O {[%clk 0:02:22]}  cxd4 {[%clk 0:02:50]} 11. cxd4 {[%clk 0:02:22]}  Nb4 {[%clk 0:02:50]} 12. Bf5 {[%clk 0:02:22]}  Bxf5 {[%clk 0:02:50]} 13. Qxf5 {[%clk 0:02:22]}  Qc8 {[%clk 0:02:50]} 14. c3 {[%clk 0:02:21]}  Qxf5 {[%clk 0:02:45]} 15. Rxf5 {[%clk 0:02:19]}  Nd3 {[%clk 0:02:45]} 16. Bg5 {[%clk 0:02:13]}  Bxg5 {[%clk 0:02:42]} 17. Rxg5 {[%clk 0:02:14]}  Rac8 {[%clk 0:02:38]} 18. Rb1 {[%clk 0:02:09]}  Rfe8 {[%clk 0:02:03]} 19. Rg3 {[%clk 0:02:09]}  Nxe5 {[%clk 0:02:03]} 20. dxe5 {[%clk 0:02:10]}  Rxe5 {[%clk 0:02:04]} 21. Kf2 {[%clk 0:02:06]}  b6 {[%clk 0:02:03]} 22. Rd1 {[%clk 0:02:00]}  h5 {[%clk 0:02:01]} 23. Rgd3 {[%clk 0:01:56]}  Rc5 {[%clk 0:01:55]} 24. R1d2 {[%clk 0:01:42]}  Rf5+ {[%clk 0:01:53]} 25. Ke1 {[%clk 0:01:36]}  Kf8 {[%clk 0:01:49]} 26. Nd4 {[%clk 0:01:21]}  Rf6 {[%clk 0:01:26]} 27. Re2 {[%clk 0:01:19]}  g6 {[%clk 0:01:20]} 28. Rde3 {[%clk 0:01:16]}  b5 {[%clk 0:01:18]} 29. Rb2 {[%clk 0:01:12]}  a6 {[%clk 0:01:16]} 30. Rb4 {[%clk 0:00:58]}  Rb6 {[%clk 0:01:11]} 31. a4 {[%clk 0:00:54]}  Rb7 {[%clk 0:00:45]} 32. axb5 {[%clk 0:00:53]}  axb5 {[%clk 0:00:46]} 33. Kd2 {[%clk 0:00:52]}  Ra7 {[%clk 0:00:44]} 34. Re2 {[%clk 0:00:40]}  Ra2+ {[%clk 0:00:33]} 35. Kd3 {[%clk 0:00:40]}  Rxe2 {[%clk 0:00:26]} 36. Nxe2 {[%clk 0:00:41]}  Ke7 {[%clk 0:00:23]} 37. Nd4 {[%clk 0:00:40]}  Kd6 {[%clk 0:00:23]} 38. Rxb5 {[%clk 0:00:40]}  Rc8 {[%clk 0:00:22]} 39. Rb7 {[%clk 0:00:39]}  Rf8 {[%clk 0:00:22]} 40. h4 {[%clk 0:00:33]}  Ke5 {[%clk 0:00:22]} 41. Rb5 {[%clk 0:00:32]}  Kf4 {[%clk 0:00:20]} 42. Rxd5 {[%clk 0:00:31]}  Kg3 {[%clk 0:00:20]} 43. Re5 {[%clk 0:00:30]}  Kxg2 {[%clk 0:00:19]} 44. c4 {[%clk 0:00:29]}  Kg3 {[%clk 0:00:19]} 45. Re4 {[%clk 0:00:26]}  f5 {[%clk 0:00:19]} 46. Ne2+ {[%clk 0:00:26]}  Kh3 {[%clk 0:00:18]} 47. Rd4 {[%clk 0:00:26]}  g5 {[%clk 0:00:11]} 48. hxg5 {[%clk 0:00:27]}  h4 {[%clk 0:00:11]} 49. c5 {[%clk 0:00:23]}  Rh8 {[%clk 0:00:11]} 50. c6 {[%clk 0:00:22]}  Kg2 {[%clk 0:00:12]} 51. c7 {[%clk 0:00:22]}  h3 {[%clk 0:00:12]} 52. Nf4+ {[%clk 0:00:22]}  Kg3 {[%clk 0:00:12]} 53. Nxh3 {[%clk 0:00:21]}  Kxh3 {[%clk 0:00:10]} 54. Rd8 {[%clk 0:00:21]} 1-0

[Event "December 12 Late 2023"]
[Site "https://www.chess.com"]
[Date "2023.12.12"]
[Round "1"]
[White "Brodowski, Piotr"]
[Black "Ward, Ieuan C"]
[Result "1-0"]
[Board "89"]
[TimeControl "180+1"]
[WhiteFideId "1124480"]
[BlackFideId "406627"]
[WhiteElo "2687"]
[BlackElo "2346"]
[WhiteTeam "POL"]
[BlackTeam "ENG"]
[WhiteClock "0:00:22"]
[BlackClock "0:00:03"]

1. e4 {[%clk 0:02:56]}  c5 {[%clk 0:02:59]} 2. Nf3 {[%clk 0:02:54]}  d6 {[%clk 0:02:59]} 3. Bc4 {[%clk 0:02:53]}  Nf6 {[%clk 0:02:59]} 4. d3 {[%clk 0:02:52]}  e6 {[%clk 0:02:54]} 5. O-O {[%clk 0:02:12]}  Nc6 {[%clk 0:02:53]} 6. Re1 {[%clk 0:02:07]}  Be7 {[%clk 0:02:53]} 7. Nc3 {[%clk 0:02:06]}  a6 {[%clk 0:02:52]} 8. Bg5 {[%clk 0:02:04]}  O-O {[%clk 0:02:49]} 9. a4 {[%clk 0:02:01]}  Qc7 {[%clk 0:02:46]} 10. h3 {[%clk 0:01:58]}  Rb8 {[%clk 0:02:44]} 11. Qd2 {[%clk 0:01:57]}  Re8 {[%clk 0:02:41]} 12. Rad1 {[%clk 0:01:36]}  Bd7 {[%clk 0:02:29]} 13. Ba2 {[%clk 0:01:26]}  Nb4 {[%clk 0:02:22]} 14. Bb1 {[%clk 0:01:26]}  b5 {[%clk 0:02:06]} 15. axb5 {[%clk 0:01:25]}  axb5 {[%clk 0:02:06]} 16. Ne2 {[%clk 0:01:26]}  Nc6 {[%clk 0:02:00]} 17. Ng3 {[%clk 0:01:24]}  b4 {[%clk 0:01:53]} 18. c3 {[%clk 0:01:10]}  bxc3 {[%clk 0:01:50]} 19. bxc3 {[%clk 0:01:11]}  Ne5 {[%clk 0:01:37]} 20. Nxe5 {[%clk 0:01:08]}  dxe5 {[%clk 0:01:38]} 21. Ba2 {[%clk 0:01:09]}  Red8 {[%clk 0:01:29]} 22. Qc2 {[%clk 0:01:06]}  Qa5 {[%clk 0:01:16]} 23. Nf1 {[%clk 0:01:03]}  Ba4 {[%clk 0:01:15]} 24. Qe2 {[%clk 0:00:51]}  Bxd1 {[%clk 0:01:15]} 25. Rxd1 {[%clk 0:00:52]}  Qa3 {[%clk 0:01:13]} 26. Bc4 {[%clk 0:00:46]}  Qxc3 {[%clk 0:01:01]} 27. Bd2 {[%clk 0:00:42]}  Qb2 {[%clk 0:00:59]} 28. Ne3 {[%clk 0:00:42]}  Rd4 {[%clk 0:00:49]} 29. Qe1 {[%clk 0:00:42]}  h6 {[%clk 0:00:43]} 30. Bc3 {[%clk 0:00:42]}  Qa3 {[%clk 0:00:35]} 31. Ra1 {[%clk 0:00:39]}  Qxa1 {[%clk 0:00:06]} 32. Qxa1 {[%clk 0:00:40]}  Rdd8 {[%clk 0:00:06]} 33. Bxe5 {[%clk 0:00:40]}  Ra8 {[%clk 0:00:06]} 34. Qb2 {[%clk 0:00:38]}  Ne8 {[%clk 0:00:06]} 35. g3 {[%clk 0:00:37]}  Bf8 {[%clk 0:00:07]} 36. Kg2 {[%clk 0:00:37]}  Nd6 {[%clk 0:00:07]} 37. Ng4 {[%clk 0:00:34]}  Nxc4 {[%clk 0:00:07]} 38. dxc4 {[%clk 0:00:34]}  Rd3 {[%clk 0:00:06]} 39. Bf4 {[%clk 0:00:26]}  Rad8 {[%clk 0:00:07]} 40. Be3 {[%clk 0:00:23]}  Rd1 {[%clk 0:00:06]} 41. Ne5 {[%clk 0:00:23]}  Be7 {[%clk 0:00:06]} 42. Nc6 {[%clk 0:00:23]}  Bf6 {[%clk 0:00:06]} 43. e5 {[%clk 0:00:23]}  Rc8 {[%clk 0:00:05]} 44. Na7 {[%clk 0:00:22]}  Rc6 {[%clk 0:00:03]} 45. Nxc6 {[%clk 0:00:22]} 1-0

[Event "December 12 Late 2023"]
[Site "https://www.chess.com"]
[Date "2023.12.12"]
[Round "1"]
[White "Gerbelli Neto, Eduardo"]
[Black "Nasuta, Grzegorz"]
[Result "0-1"]
[Board "90"]
[TimeControl "180+1"]
[WhiteFideId "2103281"]
[BlackFideId "1141686"]
[WhiteElo "2340"]
[BlackElo "2680"]
[WhiteTeam "BRA"]
[BlackTeam "POL"]
[WhiteClock "0:00:05"]
[BlackClock "0:00:07"]

1. e4 {[%clk 0:02:58]}  c5 {[%clk 0:02:59]} 2. Nc3 {[%clk 0:02:58]}  a6 {[%clk 0:02:59]} 3. f4 {[%clk 0:02:57]}  b5 {[%clk 0:02:59]} 4. g3 {[%clk 0:02:58]}  Bb7 {[%clk 0:02:59]} 5. Bg2 {[%clk 0:02:59]}  e6 {[%clk 0:03:00]} 6. d3 {[%clk 0:02:58]}  d5 {[%clk 0:03:00]} 7. Qe2 {[%clk 0:02:57]}  b4 {[%clk 0:02:49]} 8. Nd1 {[%clk 0:02:56]}  Nf6 {[%clk 0:02:46]} 9. e5 {[%clk 0:02:56]}  Nfd7 {[%clk 0:02:41]} 10. Nf3 {[%clk 0:02:54]}  Nc6 {[%clk 0:02:41]} 11. O-O {[%clk 0:02:52]}  g6 {[%clk 0:02:38]} 12. c3 {[%clk 0:02:52]}  Qb6 {[%clk 0:02:37]} 13. Be3 {[%clk 0:02:48]}  Be7 {[%clk 0:02:23]} 14. Nf2 {[%clk 0:02:44]}  a5 {[%clk 0:02:23]} 15. c4 {[%clk 0:02:36]}  d4 {[%clk 0:02:21]} 16. Bd2 {[%clk 0:02:34]}  a4 {[%clk 0:02:17]} 17. Ne4 {[%clk 0:02:27]}  a3 {[%clk 0:02:11]} 18. b3 {[%clk 0:02:27]}  O-O-O {[%clk 0:02:10]} 19. Nfg5 {[%clk 0:02:25]}  Rdf8 {[%clk 0:02:08]} 20. g4 {[%clk 0:02:10]}  h5 {[%clk 0:01:45]} 21. h3 {[%clk 0:02:09]}  hxg4 {[%clk 0:01:44]} 22. hxg4 {[%clk 0:02:09]}  Kb8 {[%clk 0:01:45]} 23. Kf2 {[%clk 0:01:57]}  Rh2 {[%clk 0:01:03]} 24. Rh1 {[%clk 0:01:57]}  Rxg2+ {[%clk 0:01:03]} 25. Kxg2 {[%clk 0:01:56]}  Bxg5 {[%clk 0:01:03]} 26. fxg5 {[%clk 0:01:48]}  Ncxe5 {[%clk 0:01:04]} 27. Bf4 {[%clk 0:01:46]}  Ka7 {[%clk 0:01:04]} 28. Rh7 {[%clk 0:01:44]}  Qc6 {[%clk 0:00:54]} 29. Kg3 {[%clk 0:01:42]}  Ka6 {[%clk 0:00:22]} 30. Rah1 {[%clk 0:01:34]}  Nxd3 {[%clk 0:00:21]} 31. Qxd3 {[%clk 0:01:26]}  e5 {[%clk 0:00:20]} 32. Bc1 {[%clk 0:01:14]}  Qxe4 {[%clk 0:00:20]} 33. Qxe4 {[%clk 0:01:13]}  Bxe4 {[%clk 0:00:21]} 34. Rf1 {[%clk 0:01:06]}  Bb1 {[%clk 0:00:11]} 35. Rfxf7 {[%clk 0:00:37]}  Rxf7 {[%clk 0:00:12]} 36. Rxf7 {[%clk 0:00:36]}  Nb6 {[%clk 0:00:13]} 37. Rf6 {[%clk 0:00:30]}  Bxa2 {[%clk 0:00:13]} 38. Rxg6 {[%clk 0:00:30]}  Bxb3 {[%clk 0:00:11]} 39. Rc6 {[%clk 0:00:25]}  Bc2 {[%clk 0:00:09]} 40. g6 {[%clk 0:00:23]}  a2 {[%clk 0:00:07]} 41. Bb2 {[%clk 0:00:23]}  Kb7 {[%clk 0:00:06]} 42. Rxc5 {[%clk 0:00:20]}  Bxg6 {[%clk 0:00:07]} 43. Rxe5 {[%clk 0:00:20]}  d3 {[%clk 0:00:06]} 44. Re6 {[%clk 0:00:20]}  d2 {[%clk 0:00:06]} 45. Re7+ {[%clk 0:00:21]}  Kc6 {[%clk 0:00:06]} 46. Re6+ {[%clk 0:00:05]}  Kc5 {[%clk 0:00:07]} 0-1

[Event "December 12 Late 2023"]
[Site "https://www.chess.com"]
[Date "2023.12.12"]
[Round "1"]
[White "Munoz Sanchez, Miguel"]
[Black "Goryachkina, Aleksandra"]
[Result "0-1"]
[Board "94"]
[TimeControl "180+1"]
[WhiteFideId "3600734"]
[BlackFideId "4147103"]
[WhiteElo "2330"]
[BlackElo "2664"]
[WhiteTeam "ECU"]
[BlackTeam "FID"]
[WhiteClock "0:00:00"]
[BlackClock "0:00:09"]

1. Nf3 {[%clk 0:03:00]}  c5 {[%clk 0:02:59]} 2. g3 {[%clk 0:03:00]}  Nf6 {[%clk 0:02:58]} 3. Bg2 {[%clk 0:03:01]}  g6 {[%clk 0:02:58]} 4. O-O {[%clk 0:03:02]}  Bg7 {[%clk 0:02:58]} 5. c4 {[%clk 0:03:01]}  Nc6 {[%clk 0:02:58]} 6. Nc3 {[%clk 0:03:01]}  d6 {[%clk 0:02:58]} 7. d4 {[%clk 0:02:57]}  cxd4 {[%clk 0:02:58]} 8. Nxd4 {[%clk 0:02:58]}  Bd7 {[%clk 0:02:58]} 9. Nc2 {[%clk 0:02:54]}  h5 {[%clk 0:02:56]} 10. Bg5 {[%clk 0:02:51]}  Nh7 {[%clk 0:02:50]} 11. Be3 {[%clk 0:02:47]}  h4 {[%clk 0:02:49]} 12. Nd5 {[%clk 0:02:36]}  hxg3 {[%clk 0:02:26]} 13. hxg3 {[%clk 0:02:34]}  Nf6 {[%clk 0:02:23]} 14. Nxf6+ {[%clk 0:02:32]}  Bxf6 {[%clk 0:02:23]} 15. Nd4 {[%clk 0:02:31]}  Ne5 {[%clk 0:02:22]} 16. Rc1 {[%clk 0:02:21]}  Ng4 {[%clk 0:02:21]} 17. Qd2 {[%clk 0:02:12]}  Nxe3 {[%clk 0:01:55]} 18. Qxe3 {[%clk 0:02:11]}  Qa5 {[%clk 0:01:55]} 19. Nb5 {[%clk 0:01:57]}  Kf8 {[%clk 0:01:36]} 20. Bf3 {[%clk 0:01:46]}  a6 {[%clk 0:01:29]} 21. Nc3 {[%clk 0:01:43]}  Bc6 {[%clk 0:01:16]} 22. Nd5 {[%clk 0:01:38]}  Be5 {[%clk 0:00:57]} 23. b4 {[%clk 0:01:20]}  Qd8 {[%clk 0:00:57]} 24. Rfd1 {[%clk 0:01:10]}  Bxd5 {[%clk 0:00:38]} 25. Rxd5 {[%clk 0:01:06]}  e6 {[%clk 0:00:35]} 26. Rxe5 {[%clk 0:00:55]}  dxe5 {[%clk 0:00:34]} 27. Qxe5 {[%clk 0:00:56]}  Ke7 {[%clk 0:00:25]} 28. Bxb7 {[%clk 0:00:52]}  Rb8 {[%clk 0:00:25]} 29. Bf3 {[%clk 0:00:47]}  Rxb4 {[%clk 0:00:21]} 30. Qc5+ {[%clk 0:00:37]}  Qd6 {[%clk 0:00:21]} 31. Qa7+ {[%clk 0:00:38]}  Kf6 {[%clk 0:00:20]} 32. c5 {[%clk 0:00:36]}  Qd2 {[%clk 0:00:19]} 33. Rf1 {[%clk 0:00:34]}  g5 {[%clk 0:00:12]} 34. c6 {[%clk 0:00:22]}  g4 {[%clk 0:00:12]} 35. Bg2 {[%clk 0:00:23]}  Rc4 {[%clk 0:00:12]} 36. Qxa6 {[%clk 0:00:21]}  Rc1 {[%clk 0:00:12]} 37. e3 {[%clk 0:00:19]}  Rxf1+ {[%clk 0:00:09]} 38. Qxf1 {[%clk 0:00:18]}  Qc3 {[%clk 0:00:09]} 39. Qd1 {[%clk 0:00:16]}  Ra8 {[%clk 0:00:07]} 40. Qd4+ {[%clk 0:00:16]}  Qxd4 {[%clk 0:00:07]} 41. exd4 {[%clk 0:00:16]}  Rxa2 {[%clk 0:00:08]} 42. d5 {[%clk 0:00:14]}  Ra1+ {[%clk 0:00:07]} 43. Kh2 {[%clk 0:00:14]}  exd5 {[%clk 0:00:07]} 44. Bxd5 {[%clk 0:00:13]}  Rc1 {[%clk 0:00:07]} 45. Kg2 {[%clk 0:00:12]}  Ke7 {[%clk 0:00:07]} 46. Be4 {[%clk 0:00:12]}  Ke6 {[%clk 0:00:07]} 47. f3 {[%clk 0:00:11]}  f5 {[%clk 0:00:07]} 48. Bd3 {[%clk 0:00:07]}  Rc3 {[%clk 0:00:08]} 49. Bb5 {[%clk 0:00:06]}  Rxf3 {[%clk 0:00:05]} 50. Bc4+ {[%clk 0:00:05]}  Kd6 {[%clk 0:00:05]} 51. Be2 {[%clk 0:00:04]}  Rc3 {[%clk 0:00:05]} 52. Kf2 {[%clk 0:00:03]}  Rxc6 {[%clk 0:00:06]} 53. Bd1 {[%clk 0:00:03]}  Rc5 {[%clk 0:00:06]} 54. Bb3 {[%clk 0:00:03]}  Ke5 {[%clk 0:00:07]} 55. Bd1 {[%clk 0:00:02]}  Rc3 {[%clk 0:00:07]} 56. Be2 {[%clk 0:00:03]}  Rc2 {[%clk 0:00:08]} 57. Ke3 {[%clk 0:00:03]}  Rc3+ {[%clk 0:00:08]} 58. Kf2 {[%clk 0:00:03]}  Kd4 {[%clk 0:00:09]} 59. Bd1 {[%clk 0:00:02]}  Ra3 {[%clk 0:00:08]} 60. Be2 {[%clk 0:00:02]}  Ra2 {[%clk 0:00:09]} 61. Kg2 {[%clk 0:00:00]}  Rxe2+ {[%clk 0:00:09]} 0-1

[Event "December 12 Late 2023"]
[Site "https://www.chess.com"]
[Date "2023.12.12"]
[Round "1"]
[White "Goltsev, Dmitry"]
[Black "Khokhlova, Daria"]
[Result "1-0"]
[Board "95"]
[TimeControl "180+1"]
[WhiteFideId "24176710"]
[BlackFideId "24182729"]
[WhiteElo "2663"]
[BlackElo "2329"]
[WhiteTeam "RUS"]
[BlackTeam "FID"]
[WhiteClock "0:02:28"]
[BlackClock "0:01:21"]

1. e4 {[%clk 0:03:00]}  c5 {[%clk 0:02:59]} 2. Nf3 {[%clk 0:02:59]}  d6 {[%clk 0:02:59]} 3. d4 {[%clk 0:03:00]}  cxd4 {[%clk 0:02:59]} 4. Nxd4 {[%clk 0:03:00]}  Nf6 {[%clk 0:02:59]} 5. Nc3 {[%clk 0:03:01]}  a6 {[%clk 0:02:58]} 6. Be2 {[%clk 0:03:01]}  e5 {[%clk 0:02:58]} 7. Nb3 {[%clk 0:03:00]}  Be7 {[%clk 0:02:58]} 8. O-O {[%clk 0:02:58]}  O-O {[%clk 0:02:57]} 9. f4 {[%clk 0:02:58]}  exf4 {[%clk 0:02:57]} 10. Bxf4 {[%clk 0:02:57]}  Nc6 {[%clk 0:02:57]} 11. Bf3 {[%clk 0:02:57]}  Ne5 {[%clk 0:02:55]} 12. Qe2 {[%clk 0:02:56]}  Be6 {[%clk 0:02:50]} 13. Rfd1 {[%clk 0:02:54]}  Qc7 {[%clk 0:02:40]} 14. Nd4 {[%clk 0:02:51]}  Nxf3+ {[%clk 0:02:22]} 15. gxf3 {[%clk 0:02:50]}  Rfd8 {[%clk 0:02:11]} 16. Kh1 {[%clk 0:02:48]}  Nd7 {[%clk 0:02:02]} 17. Nf5 {[%clk 0:02:37]}  Bxf5 {[%clk 0:01:58]} 18. Nd5 {[%clk 0:02:37]}  Qc5 {[%clk 0:01:52]} 19. Nxe7+ {[%clk 0:02:31]}  Kf8 {[%clk 0:01:52]} 20. Bxd6 {[%clk 0:02:29]}  Qb5 {[%clk 0:01:27]} 21. Nxf5+ {[%clk 0:02:27]}  Kg8 {[%clk 0:01:24]} 22. Qxb5 {[%clk 0:02:27]}  axb5 {[%clk 0:01:21]} 23. Be7 {[%clk 0:02:28]} 1-0

[Event "December 12 Late 2023"]
[Site "https://www.chess.com"]
[Date "2023.12.12"]
[Round "1"]
[White "Kujawski, Adam"]
[Black "Wadsworth, Matthew J"]
[Result "1-0"]
[Board "96"]
[TimeControl "180+1"]
[WhiteFideId "1100920"]
[BlackFideId "415804"]
[WhiteElo "2328"]
[BlackElo "2660"]
[WhiteTeam "POL"]
[BlackTeam "ENG"]
[WhiteClock "0:00:02"]
[BlackClock "0:00:05"]

1. e4 {[%clk 0:02:37]}  c5 {[%clk 0:02:56]} 2. Nf3 {[%clk 0:02:36]}  e6 {[%clk 0:02:53]} 3. d4 {[%clk 0:02:35]}  cxd4 {[%clk 0:02:53]} 4. Nxd4 {[%clk 0:02:34]}  Nc6 {[%clk 0:02:54]} 5. Nc3 {[%clk 0:02:34]}  Qc7 {[%clk 0:02:54]} 6. Ndb5 {[%clk 0:02:29]}  Qb8 {[%clk 0:02:53]} 7. Be3 {[%clk 0:02:30]}  a6 {[%clk 0:02:52]} 8. Nd4 {[%clk 0:02:30]}  Qc7 {[%clk 0:02:51]} 9. f4 {[%clk 0:02:29]}  b5 {[%clk 0:02:43]} 10. Bd3 {[%clk 0:02:19]}  Bb7 {[%clk 0:02:41]} 11. Nxc6 {[%clk 0:02:17]}  Qxc6 {[%clk 0:02:39]} 12. a3 {[%clk 0:02:06]}  Nf6 {[%clk 0:02:36]} 13. O-O {[%clk 0:01:43]}  b4 {[%clk 0:02:31]} 14. axb4 {[%clk 0:01:42]}  Bxb4 {[%clk 0:02:32]} 15. Bd4 {[%clk 0:01:11]}  Bxc3 {[%clk 0:02:24]} 16. bxc3 {[%clk 0:01:10]}  Nxe4 {[%clk 0:02:24]} 17. Qg4 {[%clk 0:01:03]}  Nf6 {[%clk 0:02:23]} 18. Qh3 {[%clk 0:00:50]}  h5 {[%clk 0:02:05]} 19. Rab1 {[%clk 0:00:46]}  h4 {[%clk 0:01:48]} 20. Rb6 {[%clk 0:00:42]}  Qc8 {[%clk 0:01:48]} 21. f5 {[%clk 0:00:22]}  Rh5 {[%clk 0:00:58]} 22. fxe6 {[%clk 0:00:21]}  dxe6 {[%clk 0:00:57]} 23. Qe3 {[%clk 0:00:16]}  Nd5 {[%clk 0:00:49]} 24. Qf3 {[%clk 0:00:15]}  Rf5 {[%clk 0:00:40]} 25. Bxf5 {[%clk 0:00:15]}  Nxb6 {[%clk 0:00:41]} 26. Be4 {[%clk 0:00:14]}  Qc7 {[%clk 0:00:27]} 27. Bxb7 {[%clk 0:00:13]}  Rb8 {[%clk 0:00:28]} 28. Be4 {[%clk 0:00:10]}  Nc4 {[%clk 0:00:19]} 29. Qf2 {[%clk 0:00:08]}  h3 {[%clk 0:00:16]} 30. gxh3 {[%clk 0:00:07]}  a5 {[%clk 0:00:16]} 31. Kh1 {[%clk 0:00:07]}  a4 {[%clk 0:00:16]} 32. Qh4 {[%clk 0:00:03]}  a3 {[%clk 0:00:06]} 33. Qh8+ {[%clk 0:00:03]}  Ke7 {[%clk 0:00:06]} 34. Rxf7+ {[%clk 0:00:03]}  Kxf7 {[%clk 0:00:04]} 35. Qxg7+ {[%clk 0:00:03]}  Ke8 {[%clk 0:00:05]} 36. Qxc7 {[%clk 0:00:02]}  Rb1+ {[%clk 0:00:04]} 37. Kg2 {[%clk 0:00:02]}  a2 {[%clk 0:00:05]} 38. Bg6+ {[%clk 0:00:02]}  Kf8 {[%clk 0:00:05]} 39. Qg7# {[%clk 0:00:02]} 1-0

[Event "December 12 Late 2023"]
[Site "https://www.chess.com"]
[Date "2023.12.12"]
[Round "1"]
[White "Mazzilli, Piero"]
[Black "Karacsonyi, Gellert"]
[Result "0-1"]
[Board "98"]
[TimeControl "180+1"]
[WhiteFideId "807087"]
[BlackFideId "764620"]
[WhiteElo "2325"]
[BlackElo "2653"]
[WhiteTeam "ITA"]
[BlackTeam "HUN"]
[WhiteClock "0:00:38"]
[BlackClock "0:00:18"]

1. e4 {[%clk 0:03:00]}  c5 {[%clk 0:02:59]} 2. Nf3 {[%clk 0:03:01]}  Nc6 {[%clk 0:02:56]} 3. c3 {[%clk 0:03:01]}  Nf6 {[%clk 0:02:55]} 4. e5 {[%clk 0:03:01]}  Nd5 {[%clk 0:02:56]} 5. d4 {[%clk 0:03:02]}  cxd4 {[%clk 0:02:56]} 6. cxd4 {[%clk 0:03:02]}  e6 {[%clk 0:02:56]} 7. Bc4 {[%clk 0:02:59]}  Nb6 {[%clk 0:02:56]} 8. Bb3 {[%clk 0:02:59]}  d6 {[%clk 0:02:57]} 9. O-O {[%clk 0:02:54]}  dxe5 {[%clk 0:02:46]} 10. dxe5 {[%clk 0:02:54]}  Qxd1 {[%clk 0:02:46]} 11. Rxd1 {[%clk 0:02:55]}  Bd7 {[%clk 0:02:46]} 12. Nc3 {[%clk 0:02:54]}  Na5 {[%clk 0:02:35]} 13. Be3 {[%clk 0:02:23]}  Nac4 {[%clk 0:02:25]} 14. Bxb6 {[%clk 0:02:21]}  Nxb6 {[%clk 0:02:26]} 15. Ne4 {[%clk 0:02:14]}  h6 {[%clk 0:02:13]} 16. a4 {[%clk 0:01:53]}  Bc6 {[%clk 0:02:11]} 17. a5 {[%clk 0:01:38]}  Nd5 {[%clk 0:02:04]} 18. Nd4 {[%clk 0:01:16]}  Be7 {[%clk 0:01:56]} 19. Nxc6 {[%clk 0:01:05]}  bxc6 {[%clk 0:01:56]} 20. Ba4 {[%clk 0:01:00]}  Kd7 {[%clk 0:01:54]} 21. Rac1 {[%clk 0:00:51]}  Rhc8 {[%clk 0:01:53]} 22. Rc2 {[%clk 0:00:32]}  Rab8 {[%clk 0:01:51]} 23. Rdc1 {[%clk 0:00:28]}  Rb4 {[%clk 0:01:06]} 24. Rxc6 {[%clk 0:00:06]}  Rxa4 {[%clk 0:01:06]} 25. Rxc8 {[%clk 0:00:06]}  Rxe4 {[%clk 0:01:07]} 26. Ra8 {[%clk 0:00:05]}  Bc5 {[%clk 0:01:07]} 27. Kf1 {[%clk 0:00:03]}  Bd4 {[%clk 0:00:53]} 28. Rd1 {[%clk 0:00:01]}  Kc6 {[%clk 0:00:46]} 29. g3 {[%clk 0:00:02]}  Kb5 {[%clk 0:00:32]} 30. Rb8+ {[%clk 0:00:02]}  Ka6 {[%clk 0:00:24]} 31. Re1 {[%clk 0:00:03]}  Rxe1+ {[%clk 0:00:22]} 32. Kxe1 {[%clk 0:00:04]}  Bxe5 {[%clk 0:00:22]} 33. Rf8 {[%clk 0:00:04]}  Bxb2 {[%clk 0:00:22]} 34. f4 {[%clk 0:00:04]}  Kxa5 {[%clk 0:00:20]} 35. Rxf7 {[%clk 0:00:05]}  Kb6 {[%clk 0:00:19]} 36. Kd2 {[%clk 0:00:05]}  a5 {[%clk 0:00:18]} 37. Kd3 {[%clk 0:00:06]}  Bf6 {[%clk 0:00:18]} 38. Rf8 {[%clk 0:00:07]}  a4 {[%clk 0:00:17]} 39. Ra8 {[%clk 0:00:07]}  Kb5 {[%clk 0:00:17]} 40. Rb8+ {[%clk 0:00:08]}  Nb6 {[%clk 0:00:16]} 41. Rb7 {[%clk 0:00:08]}  a3 {[%clk 0:00:16]} 42. Ra7 {[%clk 0:00:09]}  Na4 {[%clk 0:00:16]} 43. Kc2 {[%clk 0:00:10]}  a2 {[%clk 0:00:14]} 44. Rb7+ {[%clk 0:00:10]}  Ka6 {[%clk 0:00:11]} 45. Rb4 {[%clk 0:00:10]}  a1=Q {[%clk 0:00:10]} 46. Rb3 {[%clk 0:00:11]}  Qa2+ {[%clk 0:00:09]} 47. Kd3 {[%clk 0:00:12]}  Qxb3+ {[%clk 0:00:10]} 48. Ke4 {[%clk 0:00:12]}  Qd5+ {[%clk 0:00:10]} 49. Ke3 {[%clk 0:00:13]}  Qg2 {[%clk 0:00:10]} 50. h4 {[%clk 0:00:12]}  Qxg3+ {[%clk 0:00:10]} 51. Ke4 {[%clk 0:00:13]}  Qxh4 {[%clk 0:00:10]} 52. Ke3 {[%clk 0:00:13]}  Qg4 {[%clk 0:00:10]} 53. f5 {[%clk 0:00:14]}  Qxf5 {[%clk 0:00:09]} 54. Kd2 {[%clk 0:00:15]}  Be7 {[%clk 0:00:09]} 55. Kc1 {[%clk 0:00:16]}  Qf2 {[%clk 0:00:09]} 56. Kb1 {[%clk 0:00:16]}  Qd2 {[%clk 0:00:09]} 57. Ka1 {[%clk 0:00:17]}  h5 {[%clk 0:00:09]} 58. Kb1 {[%clk 0:00:17]}  h4 {[%clk 0:00:10]} 59. Ka1 {[%clk 0:00:18]}  h3 {[%clk 0:00:11]} 60. Kb1 {[%clk 0:00:19]}  g5 {[%clk 0:00:12]} 61. Ka1 {[%clk 0:00:20]}  g4 {[%clk 0:00:13]} 62. Kb1 {[%clk 0:00:21]}  g3 {[%clk 0:00:14]} 63. Ka1 {[%clk 0:00:22]}  g2 {[%clk 0:00:15]} 64. Kb1 {[%clk 0:00:23]}  h2 {[%clk 0:00:16]} 65. Ka1 {[%clk 0:00:24]}  e5 {[%clk 0:00:17]} 66. Kb1 {[%clk 0:00:25]}  e4 {[%clk 0:00:18]} 67. Ka1 {[%clk 0:00:25]}  e3 {[%clk 0:00:18]} 68. Kb1 {[%clk 0:00:26]}  e2 {[%clk 0:00:19]} 69. Ka1 {[%clk 0:00:27]}  h1=N {[%clk 0:00:19]} 70. Kb1 {[%clk 0:00:28]}  g1=N {[%clk 0:00:19]} 71. Ka1 {[%clk 0:00:29]}  e1=N {[%clk 0:00:19]} 72. Kb1 {[%clk 0:00:30]}  Bb4 {[%clk 0:00:18]} 73. Ka1 {[%clk 0:00:31]}  Nd3 {[%clk 0:00:18]} 74. Kb1 {[%clk 0:00:32]}  Ne2 {[%clk 0:00:19]} 75. Ka1 {[%clk 0:00:33]}  Nhf2 {[%clk 0:00:19]} 76. Kb1 {[%clk 0:00:34]}  Ng4 {[%clk 0:00:19]} 77. Ka1 {[%clk 0:00:34]}  Ne3 {[%clk 0:00:19]} 78. Kb1 {[%clk 0:00:35]}  Nac5 {[%clk 0:00:18]} 79. Ka1 {[%clk 0:00:36]}  Ba3 {[%clk 0:00:17]} 80. Kb1 {[%clk 0:00:37]}  Nc3+ {[%clk 0:00:17]} 81. Ka1 {[%clk 0:00:38]}  Nb3# {[%clk 0:00:18]} 0-1